Cogmind - Beta 10.2 @@@ ROGUE MODE // 2022.02.19 @ 04:08:19 Player: Conner Result: Self-destructed Performance ------------- Evolutions (1) 500 Regions Visited (6) 1200 Robots Destroyed (46) 230 Value Destroyed (963) 963 Prototype IDs (26) 520 Alien Tech Used (0) 0 Bonus (405) 405 TOTAL SCORE: 3818 Bonus ------- High Alert Combat Kills 2 Follower Combat Kills 116 Aligned with FarCom 300 Friendly Fire -13 Cogmind --------- Core Integrity 208/400 Matter 253/300 Energy 265/265 System Corruption 0% Temperature Cool (0) Movement Core (2800) Ox55 Location -8/Mines Parts ------- > --- POWER (1) -------- Improved Ion Engine > --- PROPULSION (2) --- (None) > --- UTILITY (4) ------ Humpback Humpback > --- WEAPON (2) ------- (None) > --- INVENTORY (44) --- Ion Engine Ion Engine Ion Engine Light Ion Engine Improved Ion Engine Improved Ion Engine Improved Ion Engine Improved Ion Engine Improved Ion Engine Large Storage Unit Humpback Experimental Sensor Array Particle Gun AWS/Autocannon Improved Datajack Mining Laser Peak State ------------ > --- POWER ------------ Improved Ion Engine > --- PROPULSION ------- Carbon-fiber Leg Carbon-fiber Leg > --- UTILITY ---------- Large Storage Unit Experimental Sensor Array Light Armor Plating Hardened Light Armor Plating > --- WEAPON ----------- Heavy Assault Rifle Makeshift Shrapnel Gun > --- INVENTORY -------- Ion Engine Ion Engine Ion Engine Large Storage Unit Large Storage Unit Large Storage Unit Shotgun Light Cannon Mining Laser Mining Laser [Rating: 25] Favorites ----------- Power Improved Ion Engine Engine Improved Ion Engine Propulsion Carbon-fiber Leg Leg Carbon-fiber Leg Wheel Wheel Flight Unit Flight Unit Utility Large Storage Unit Device Experimental Sensor Array Storage Large Storage Unit Protection Light Armor Plating Weapon Improved EM Shotgun Energy Gun Improved EM Shotgun Ballistic Gun Heavy Assault Rifle Build | -11 -10 -10 -9 -9 -9 -8 ------- Run | Scr Mat Min Mat Min Exi Min Slots Evolved 2 | . . . 2 . . . Power . | . . . . . . . Propulsion . | . . . . . . . Utility 2 | . . . 2 . . . Weapon . | . . . . . . . Parts Attached 50 | 7 10 7 20 1 2 3 Power 10 | 2 1 1 5 . 1 . Engine 10 | 2 1 1 5 . 1 . Core . | . . . . . . . Reactor . | . . . . . . . Propulsion 11 | 2 4 1 4 . . . Treads . | . . . . . . . Leg 3 | . . . 3 . . . Wheel 7 | 2 4 1 . . . . Hover . | . . . . . . . Flight 1 | . . . 1 . . . Utility 16 | . 3 4 5 1 1 2 Device 3 | . 1 1 . . . 1 Storage 4 | . 1 . 1 . 1 1 Processor . | . . . . . . . Hackware . | . . . . . . . Protection 9 | . 1 3 4 1 . . Artifact . | . . . . . . . Weapon 13 | 3 2 1 6 . . 1 Energy Gun 4 | . . . 4 . . . Energy Cannon . | . . . . . . . Ballistic Gun 9 | 3 2 1 2 . . 1 Ballistic Cannon . | . . . . . . . Launcher . | . . . . . . . Special Weapon . | . . . . . . . Impact Weapon . | . . . . . . . Slashing Weapon . | . . . . . . . Piercing Weapon . | . . . . . . . Special Melee Weapon . | . . . . . . . Unidentified Prototypes 1 | . . 1 . . . . Parts Lost 11 | . . 1 2 . . 8 Power . | . . . . . . . Propulsion 3 | . . . 1 . . 2 Utility 4 | . . 1 . . . 3 Weapon 4 | . . . 1 . . 3 Highest Loss Streak 5 | . . 1 1 . . 5 Average Slot Usage (%) 94 | . 96 98 97 100 95 79 Engine 12 | . 14 14 11 11 11 11 Leg 13 | . . . 17 22 22 17 Wheel 10 | . 28 28 3 . . . Device 2 | . . 4 9 . . . Storage 14 | . 10 14 12 22 18 11 Protection 17 | . 13 8 20 22 22 18 Energy Gun 11 | . . . 8 22 22 18 Ballistic Gun 12 | . 28 28 13 . . 2 Naked Turns . | . . . . . . . Heaviest Build 173 | 9 30 32 53 53 101 173 Greatest Support 30 | 26 26 26 30 30 30 30 Greatest Overweight (x) 57 | . 1 1 3 1 3 57 Average Overweight (x) 1 | . . 1 1 1 1 3 Largest Inventory Capacity 44 | 4 10 10 16 16 24 44 Average Capacity 14 | 4 8 10 10 16 18 24 Most Carried 21 | 2 10 10 16 16 19 21 Average Carried 13 | 1 8 9 10 16 16 20 Final Capacity 44 | 4 10 10 16 16 24 44 Final Carried 19 | 2 10 10 16 16 19 19 Class Distribution -------------------- 68% | Mutant 21% | Hauler-Mutant 9% | Scavenger-Mutant Dominant Class ---------------- Mutant | -10/Materials Mutant | -10/Mines Scavenger-Mutant | -9/Materials Mutant | -9/Mines Mutant | -9/Exiles Hauler-Mutant | -8/Mines Resources | -11 -10 -10 -9 -9 -9 -8 ----------- Run | Scr Mat Min Mat Min Exi Min Matter Collected 1329 | 269 429 163 422 10 20 16 Remotely . | . . . . . . . Salvage Created 1581 | . 600 66 658 50 . 207 Parts 106 | . 34 6 55 2 . 9 Haulers Intercepted 2 | . 1 . 1 . . . Recyclers Shooed 4 | . 3 1 . . . . Parts Field Recycled . | . . . . . . . Retrieved Matter . | . . . . . . . Parts Self-Destructed . | . . . . . . . Prevented . | . . . . . . . Kills | -11 -10 -10 -9 -9 -9 -8 ------- Run | Scr Mat Min Mat Min Exi Min Combat Hostiles Destroyed 32 | . 7 2 19 2 . 2 Guns 31 | . 7 2 19 1 . 2 Classes Destroyed 9 | . 6 1 1 . . 1 Worker 4 | . 1 2 1 . . . Builder 1 | . 1 . . . . . Tunneler 1 | . . . . . . 1 Hauler 2 | . 1 . 1 . . . Recycler 4 | . 3 . . . . 1 Watcher 2 | . 1 . 1 . . . Swarmer 12 | . . 2 10 . . . Grunt 14 | . 7 . 4 1 . 2 Sentry 5 | . . . 5 . . . Best Kill Streak 4 | . 3 2 4 1 . 2 Combat Bots Only 4 | . 3 2 4 1 . 2 Max Kills in Single Turn 2 | . 1 1 2 1 . 1 Gunslinging 1 | . . . 1 . . . Exploded . | . . . . . . . Melee . | . . . . . . . Uniques/NPCs Destroyed 1 | . . . . 1 . . YI-UF0 (-9/Mines) Combat | -11 -10 -10 -9 -9 -9 -8 -------- Run | Scr Mat Min Mat Min Exi Min Damage Taken 2099 | . 297 24 837 181 . 760 Core 266 | . 67 7 86 . . 106 Absorbed by Shields 9 | . . . . . . 9 Core Remaining (%) 85 | 100 . 70 . . . . Volleys Fired 142 | . 58 12 46 7 . 19 Largest 2 | . 2 2 2 2 . 2 Hottest 90 | . 40 47 90 90 . 90 Shots Fired 283 | . 116 24 92 14 . 37 Gun 283 | . 116 24 92 14 . 37 Cannon . | . . . . . . . Launcher . | . . . . . . . Special . | . . . . . . . Kinetic 215 | . 116 24 58 . . 17 Thermal . | . . . . . . . Explosive . | . . . . . . . Electromagnetic 68 | . . . 34 14 . 20 Robot Hit Streak 21 | . 15 11 21 6 . 5 Robot Miss Streak 7 | . 6 2 7 2 . 7 Penetration Max . | . . . . . . . Secondary Targets 7 | . 2 1 4 . . . Max Gunslinging Chain 1 | . 1 1 1 . . . Shots Hit Robots 196 | . 78 14 63 13 . 28 Core Hits 86 | . 26 7 35 5 . 13 Critical Hits 1 | . 1 . . . . . Critical Kills . | . . . . . . . Critical Parts Destroyed 1 | . 1 . . . . . Melee Attacks . | . . . . . . . Impact . | . . . . . . . Slashing . | . . . . . . . Piercing . | . . . . . . . Sneak Attacks . | . . . . . . . Combat Hostiles . | . . . . . . . Follow-up Attacks . | . . . . . . . Damage Inflicted 2796 | . 866 200 1059 155 . 516 Guns 2598 | . 866 200 1014 155 . 363 Cannons . | . . . . . . . Explosions 198 | . . . 45 . . 153 Melee . | . . . . . . . Ramming . | . . . . . . . Kinetic 1843 | . 866 200 622 . . 155 Thermal 198 | . . . 45 . . 153 Explosive . | . . . . . . . Electromagnetic 755 | . . . 392 155 . 208 Impact . | . . . . . . . Slashing . | . . . . . . . Piercing . | . . . . . . . Highest Corruption . | . . . . . . . Average Corruption . | . . . . . . . Corruption Purged . | . . . . . . . Overload Shots . | . . . . . . . Overflow Damage 24 | . . . . . . 24 Projectiles . | . . . . . . . Explosions 24 | . . . . . . 24 Melee . | . . . . . . . Knockbacks . | . . . . . . . Impact . | . . . . . . . Kinetic . | . . . . . . . Secondary . | . . . . . . . Self-Inflicted Damage 95 | . . . 32 . . 63 Shots 2 | . . . 1 . . 1 Rammed . | . . . . . . . Targets Rammed . | . . . . . . . Kicked . | . . . . . . . Crushed . | . . . . . . . Highest Temperature 293 | . 12 . 240 240 . 293 Average Temperature 88 | . 4 . 70 103 . 157 Received Heat Transfer 528 | . 165 . 180 . . 183 Effects 2 | . . . . . . 2 Energy Bleed 1 | . . . . . . 1 Interference 1 | . . . . . . 1 Siege Activations . | . . . . . . . Robots Corrupted 1 | . . . . 1 . . Combat Hostiles 1 | . . . . 1 . . Parts Fried 7 | . . . 7 . . . Impact Corruptions . | . . . . . . . Robots Melted . | . . . . . . . Combat Hostiles . | . . . . . . . Parts Melted . | . . . . . . . Heat Transferred 200 | . . . . . . 200 Parts Sabotaged . | . . . . . . . Parts Stolen . | . . . . . . . Parts Stripped . | . . . . . . . Power Chain Reactions 2 | . . . 1 . . 1 Missiles Intercepted . | . . . . . . . Alert | -11 -10 -10 -9 -9 -9 -8 ------- Run | Scr Mat Min Mat Min Exi Min Peak Influence 415 | . 163 45 415 196 . 68 Initial 128 | . . . 4 128 . . Average 94 | . 79 21 230 124 . 9 Maximum Alert Level 2 | . . . 2 . . . Low Security (%) 85 | 100 100 100 37 100 . 100 Level 1 13 | . . . 60 . . . Level 2 . | . . . 1 . . . Level 3 . | . . . . . . . Level 4 . | . . . . . . . Level 5 . | . . . . . . . High Security . | . . . . . . . Max Security . | . . . . . . . Squads Dispatched 4 | . 1 . 1 1 . 1 Investigation 2 | . 1 . 1 . . . Extermination . | . . . . . . . Reinforcement 1 | . . . . . . 1 Assault 1 | . . . . 1 . . Garrison . | . . . . . . . Intercept . | . . . . . . . Construction Impeded 1 | . . . . . . 1 Haulers Reinforced . | . . . . . . . Stealth | -11 -10 -10 -9 -9 -9 -8 --------- Run | Scr Mat Min Mat Min Exi Min Distress Signals 3 | . . . 1 2 . . Communications Jammed . | . . . . . . . Distress Signals . | . . . . . . . Times Spotted 56 | . 15 4 25 4 . 8 Peak Tracking Total 5 | . 5 2 5 2 . 3 Tactical Retreats 4 | . . . . 1 . 3 Traps | -11 -10 -10 -9 -9 -9 -8 ------- Run | Scr Mat Min Mat Min Exi Min Traps Triggered 1 | . 1 . . . . . Indirectly . | . . . . . . . Trap Hack Attempts . | . . . . . . . Triggered . | . . . . . . . Disarmed . | . . . . . . . Reprogrammed . | . . . . . . . Reused . | . . . . . . . Traps Extracted . | . . . . . . . Installed . | . . . . . . . Triggered . | . . . . . . . Machines | -11 -10 -10 -9 -9 -9 -8 ---------- Run | Scr Mat Min Mat Min Exi Min Machines Disabled . | . . . . . . . Max in Single Turn . | . . . . . . . Machines Sabotaged . | . . . . . . . Garrisons Compromised . | . . . . . . . Overloaded Fab Kills . | . . . . . . . Fab Network Shutdowns . | . . . . . . . Hacking | -11 -10 -10 -9 -9 -9 -8 --------- Run | Scr Mat Min Mat Min Exi Min Machines Accessed 14 | . 7 . 2 . 5 . Terminals 8 | . 7 . 1 . . . Fabricators . | . . . . . . . Repair Stations . | . . . . . . . Recycling Units . | . . . . . . . Scanalyzers 1 | . . . 1 . . . Garrison Access . | . . . . . . . Total Hacks 79 | . 20 . 9 . 50 . Successful 67 | . 11 . 6 . 50 . Failed 12 | . 9 . 3 . . . Catastrophic . | . . . . . . . Database Lockouts . | . . . . . . . Manual 23 | . 18 . 4 . 1 . Terminals 28 | . 20 . 8 . . . Fabricators . | . . . . . . . Repair Stations . | . . . . . . . Recycling Units . | . . . . . . . Scanalyzers 1 | . . . 1 . . . Garrison Access . | . . . . . . . Terminal Hacks 55 | . 2 . 3 . 50 . Record 49 | . . . . . 49 . Robot Analysis 1 | . . . 1 . . . Prototype ID Bank 1 | . 1 . . . . . Terminal Index 1 | . . . 1 . . . Alert Level 1 | . 1 . . . . . Registered Prototypes 1 | . . . 1 . . . EX-Prototype ID Bank 1 | . . . . . 1 . Fabricator Hacks . | . . . . . . . Repair Station Hacks . | . . . . . . . Recycling Unit Hacks . | . . . . . . . Scanalyzer . | . . . . . . . Garrison Access Hacks . | . . . . . . . Unauthorized Hacks 12 | . 9 . 3 . . . Terminals 11 | . 9 . 2 . . . Botnet 6 | . 5 . 1 . . . Operators 5 | . 4 . 1 . . . Fabricators . | . . . . . . . Repair Stations . | . . . . . . . Recycling Units . | . . . . . . . Scanalyzers 1 | . . . 1 . . . Extract 1 | . . . 1 . . . Garrison Access . | . . . . . . . Data Cores Recovered . | . . . . . . . Used . | . . . . . . . Hacking Detections 8 | . 7 . 1 . . . Full Trace Events . | . . . . . . . Feedback Events . | . . . . . . . Feedback Blocked . | . . . . . . . Robot Schematics Acquired . | . . . . . . . Robots Built . | . . . . . . . Matter . | . . . . . . . Time . | . . . . . . . Total Robot Build Rating . | . . . . . . . Part Schematics Acquired 5 | . . . 5 . . . Parts Built . | . . . . . . . Matter . | . . . . . . . Time . | . . . . . . . Total Part Build Rating . | . . . . . . . Parts Repaired . | . . . . . . . Time . | . . . . . . . Parts Recycled . | . . . . . . . Recycled Matter . | . . . . . . . Retrieved Matter . | . . . . . . . Retrieved Components . | . . . . . . . Parts Scanalyzed . | . . . . . . . Part Schematics Acquired . | . . . . . . . Parts Damaged . | . . . . . . . Bothacking | -11 -10 -10 -9 -9 -9 -8 ------------ Run | Scr Mat Min Mat Min Exi Min Used RIF Installer . | . . . . . . . Robots Hacked . | . . . . . . . Non-combat . | . . . . . . . Combat . | . . . . . . . Robot Hacks Applied . | . . . . . . . Relay Couplers Released . | . . . . . . . Robots Rewired . | . . . . . . . Allies Hacked . | . . . . . . . Hacks Repelled . | . . . . . . . Allies | -11 -10 -10 -9 -9 -9 -8 -------- Run | Scr Mat Min Mat Min Exi Min Total Allies 5 | . . 4 . 1 . . Largest Group 4 | . . 4 4 1 . . Highest-Rated Group 71 | . . 71 71 31 . . Highest-Rated Ally 31 | . . 31 31 31 . . Total Orders . | . . . . . . . Ally Attacks 33 | . . . 25 8 . . Total Damage 263 | . . . 201 62 . . Kills 7 | . . . 6 1 . . Allies Corrupted . | . . . . . . . Allies Melted . | . . . . . . . Intel | -11 -10 -10 -9 -9 -9 -8 ------- Run | Scr Mat Min Mat Min Exi Min Robot Analysis Total 1 | . . . 1 . . . Derelict Logs Recovered 3 | . . 3 . . . . Drone Launches . | . . . . . . . Drone Recoveries . | . . . . . . . Exploration | -11 -10 -10 -9 -9 -9 -8 ------------- Run | Scr Mat Min Mat Min Exi Min Turns Passed 4640 | 73 821 717 840 574 912 703 Spaces Moved 2941 | 70 666 584 462 368 538 253 Core 8 | 2 . . . . . 6 Treads . | . . . . . . . Legs 1488 | . . . 335 368 538 247 Wheels 1445 | 68 666 584 127 . . . Hover . | . . . . . . . Flight . | . . . . . . . Fastest Speed 50 | 50 80 100 100 150 150 210 Average Speed 135 | 89 92 100 137 150 166 249 Slowest Speed 2900 | 100 100 100 180 150 210 2900 Overloaded Moves . | . . . . . . . Propulsion Burnouts . | . . . . . . . Robots Hopped . | . . . . . . . Cave-ins Triggered . | . . . . . . . Exploration Rate (%) 59 | 3 91 88 29 68 88 48 Regions Visited 6 Branch Regions 4 Pre-discovered Areas 4 | . . 2 . 1 1 . Known Exits Taken 1 | . . . 1 . . . Unknown Exits Taken 5 | 1 1 1 . 1 1 . Scrap Searched 3 | . . 1 . . . 2 Spaces Dug . | . . . . . . . Terrain Destroyed 16 | . . . 6 . . 10 Melee . | . . . . . . . Projectile . | . . . . . . . AOE 16 | . . . 6 . . 10 Terrain Rammed . | . . . . . . . Walls Destroyed . | . . . . . . . Machines Disabled . | . . . . . . . Actions | -11 -10 -10 -9 -9 -9 -8 --------- Run | Scr Mat Min Mat Min Exi Min Total 3339 | 76 763 696 582 377 558 287 Wait 128 | . 2 86 30 1 1 8 Move 2935 | 69 665 583 461 367 537 253 Hop . | . . . . . . . Pick Up 41 | . 14 1 9 . 13 4 Fast Attach 18 | 5 3 3 6 . 1 . Attach 5 | . . . 2 . . 3 Detach . | . . . . . . . Swap 27 | 2 7 4 12 1 1 . Drop 43 | . 14 7 16 1 5 . Fire 142 | . 58 12 46 7 . 19 Melee . | . . . . . . . Ram . | . . . . . . . Kick . | . . . . . . . Crush . | . . . . . . . Escape Stasis . | . . . . . . . Rewire . | . . . . . . . Trap . | . . . . . . . Miscellaneous . | . . . . . . . Route ------- -11/Scrapyard -10/Materials (discovered 3 exits: *Mat x2 / [*Min]) -10/Mines (discovered 2 exits: *Mat x2) -9/Materials (discovered 4 exits: Mat x2 / *Min x2) -9/Mines (discovered 3 exits: *Mat x2 / *Exi) -9/Exiles -8/Mines (discovered 1 exit: *Mat) History --------- Turn | Location | Event 16 | -11/Scrapyard | Discovered new exit (range 15) 74 | -11/Scrapyard | Entered Materials 217 | -10/Materials | Discovered new exit (range 9) 327 | -10/Materials | Build established: Mutant 382 | -10/Materials | Discovered new exit (range 14) 726 | -10/Materials | Discovered new exit (range 16) 895 | -10/Materials | Entered Mines 899 | -10/Mines | Escorted by a lone wolf Derelict 919 | -10/Mines | Learned location of Storage (-7) 993 | -10/Mines | Discovered new exit (range 9) 1094 | -10/Mines | Learned location of 2 exits from Materials 1132 | -10/Mines | Discovered new exit (range 15) 1156 | -10/Mines | Joined a pair of Derelicts in attacking an 0b10 outpost 1296 | -10/Mines | A weapon hastily lodged in a ceiling crevice suddenly fell to the ground 1337 | -10/Mines | Assisted by bots powering up and referring to "LRC-V3" 1400 | -10/Mines | Found a damaged Exp. Sensor Array with a note attached 1403 | -10/Mines | Found Prototype Device 1403 | -10/Mines | Identified Exp. Sensor Array 1612 | -10/Mines | Entered Materials 1612 | -9/Materials | Accompanied by 4 allies 1612 | -9/Materials | Evolved 2 slots: Utility x2 1613 | -9/Materials | Identified exit to Mines 1614 | -9/Materials | Identified exit to Materials 2221 | -9/Materials | Build established: Scavenger-Mutant 2452 | -9/Materials | Entered Mines 2453 | -9/Mines | Met a Derelict testing a Signal Generator 2618 | -9/Mines | Found a hidden stash of uninstalled traps 2687 | -9/Mines | Build established: Mutant 2771 | -9/Mines | Discovered exit to Materials (range 13) 2789 | -9/Mines | Destroyed YI-UF0 2834 | -9/Mines | Discovered exit to Materials (range 15) 3019 | -9/Mines | Deemed a non-threat by the Exiles lab entrance 3019 | -9/Mines | Discovered new exit (range 5) 3026 | -9/Mines | Entered Exiles 3062 | -9/Exiles | Met 8R-AWN 3088 | -9/Exiles | Met EX-HEX 3130 | -9/Exiles | Met EX-BIN 3146 | -9/Exiles | Aligned with FarCom system 3148 | -9/Exiles | Given EX-Vault access code 3187 | -9/Exiles | Opened EX-Vault 3197 | -9/Exiles | Found AWS/Autocannon 3279 | -9/Exiles | Warned to stay clear of 0b10 Research branches 3323 | -9/Exiles | Met EX-DEC 3329 | -9/Exiles | Learned location of Zion (-6) 3403 | -9/Exiles | Visited The Gauntlet 3726 | -9/Exiles | Discovered new exit (range 12) 3914 | -9/Exiles | Build established: Hauler-Mutant 3938 | -9/Exiles | Left Exiles lab with AWS/Autocannon 3938 | -9/Exiles | Entered Mines 4095 | -8/Mines | Discovered exit to Materials (range 14) 4534 | -8/Mines | Lost 5 parts (2n2u1w) 4641 | -8/Mines | Self-destructed Last Messages --------------- 04545_ K-01 Serf collects debris. 04547_ U-05 Engineer builds a Wall. 04549_ K-01 Serf collects debris. 04551_ U-05 Engineer lays Concrete. 04560_ R-06 Scavenger collects Mining Laser. 04564_ Destroyed Tractor Beam. 04573_ R-06 Scavenger destroyed. 04575_ ALERT: Construction progress impeded, dispatching reinforcements to local area. 04587_ U-05 Engineer lays Concrete. 04603_ Hrd. Light Armor Plating destroyed. 04606_ Penetrated by Slug. 04618_ Imp. EM Shotgun destroyed. 04618_ Shotgun destroyed. 04627_ Penetrated by Slug. 04633_ Slug penetrates Door. 04633_ K-01 Serf destroyed. 04636_ Penetrated by Slug. 04640_ Slug penetrates Wall. 04640_ G-50 Soldier destroyed. Map ----- +----------------------------------------------------+ | ??????????# ##?# #??## ##???????? | | ???????????# #?# #?## ##????###?? | | ???????????# ### ### ##????# #?? | | ??????????## % ##????# #?? | | ??????##### < ##???? #?? | | ????### ######### ##?## ##? | | ???## #???????## ### #? | | #### ##????????## #? | | ##????#####?## #? | | ### ##?????# ##?### #? | | #?## ##?????## #???## ##? | | #??########???#### #????## ##?? | | #????????????## #?###### ##??? | | ##??????????## """ ##?# ##### ##???? | | ##?????????# """ ##??# #??## #????? | | ##???????## """ ##???# ##??# #????? | | ##?????## ##??# #??# #????? | | ####??# ### #?## #??# #????? | | #### ##?## #?# #??# #????? | | % #???## #?# ##?# #????? | | ### #### ###??## #### #?# #????? | | ###?# #??# #### # ### #?# #????? | | #???# #??# ### # #?## ##?# #????? | | #???# #??## ### #######%#### #????? | | #???# #???## %% !%|h #????? | | ##??? ????### *%u @ =######????? | | ????? ##??????## ############?????????? | | ?????#?????????## #????????????????????? | | ????????????????# #???????????###??????? | | ????????????????# #??????????# ##?????? | | ????????????????# #???????### ##????? | | ???????????????## #########s s ##???? | | ?????????####?## s #???? | | ??????#### ## """ #???? | | ?????## ###### """ #????? | | ?????# ##????## """ ##???? | | ?????# ##??????# ##??? | | ?????## #???????## ##?? | | ??????###### ## #???????### #?? | | ???????????# ### ??????## #?? | | ???????????# #?## #????## #?? | | ???????????# #???# ###?????##### ##?? | | ???????????# #????## ##???????????# #??? | | ??????????? ?????? #????????????# #??? | | ??????????? ???????#????????????# #??? | | ??????????#""" ???????????????????? #??? | | ??????????#""" ???????????????????? #??? | | ??????????#""" ??????????????????? #??? | | ?????????????? ???????????????????# #??? | | ?????????????? ???????????????????# #??? | +----------------------------------------------------+ Best States ------------- Heat Dissipation 35 Energy Generation 12 Energy Capacity 265 Matter Stores 300 Matter Capacity 300 Sight Range 16 Robot Scan Range 30 Terrain Scan Density 10 Armor Coverage 300 Evasion (%) 42 Item Schematics ----------------- Visual Processing Unit | -9/Materials | Extracted Mni. Grenade Launcher | -9/Materials | Extracted Lgt. EM Pulse Cannon | -9/Materials | Extracted Lgt. Treads | -9/Materials | Extracted Imp. Sensor Array | -9/Materials | Extracted Robot Schematics ------------------ None Fabricated ------------ Nothing Alien Tech Used ----------------- None Achievements -------------- None Challenges ------------ None Game ------ Seed NeutralizingSiegeFilter Manual? 0 Play Time 00:22:40 Cumulative 50.1 hours Start 2022.02.18 @ 11:09:22 End 2022.02.19 @ 04:08:19 Sessions 3 Manual Loads 0 Difficulty Rogue Special Mode None Game No. 91 Rogue 91 Adventurer 0 Explorer 0 Win Type - Total 0 Types 0/0/0/0/0/0/0/0/0 Lore% 55 Gallery% 56 Achievement% 42 Wizard Run 0 Options --------- ASCII 0 Keyboard 0 Movement Numpad Keybinds 0 Fullscreen 1 Font 24/Smallcaps Map View 76x50 Tactical HUD 1 Map Filters NONE Filters NONE Steam 1 RUN: 867e76cc-35e0-4e55-b1ce-3106c372fc08